bitfinex/quotes_BTCUSD_20250830
["timestamp","ask_amount","ask_price","bid_price","bid_amount"]
[1756583271923,1.55601636,109020.0,109010.0,0.0721143]
[1756583272134,1.75194095,109020.0,109010.0,0.07220164]
[1756583272341,1.75393095,109020.0,109010.0,0.07220164]
[1756583272551,1.78152095,109020.0,109010.0,0.07220164]
[1756583273128,1.78152095,109020.0,109010.0,0.07320164]
[1756583273346,4.52380708,109020.0,109010.0,0.00108734]
[1756583273559,4.70713708,109020.0,109010.0,0.00408734]
[1756583273994,4.51406438,109020.0,109010.0,0.00408734]
[1756583274211,4.51406438,109020.0,109000.0,4e-05]
[1756583274212,1.05593872,109010.0,109000.0,4e-05]
[1756583274448,4.0223972,109010.0,109000.0,0.00018291]
[1756583274707,4.0271772,109010.0,109000.0,0.00018291]
[1756583276017,4.3947702,109010.0,109000.0,0.00118291]
[1756583276853,4.39470978,109010.0,109000.0,0.00118291]
[1756583277062,4.50102913,109010.0,109000.0,0.00118291]
[1756583277233,4.4578628,109010.0,109000.0,0.00118291]
[1756583278627,4.39235367,109010.0,109000.0,0.00118291]
[1756583279244,4.23987367,109010.0,109000.0,0.00118291]
[1756583279440,4.39235367,109010.0,109000.0,0.00118291]
[1756583280310,3.17555104,109010.0,109000.0,0.00639291]
[1756583280512,3.15461222,109010.0,109000.0,0.00639291]
[1756583280701,1.41554008,109010.0,109000.0,0.00639291]
[1756583280906,1.25661777,109010.0,109000.0,0.00639291]
[1756583281108,1.40913777,109010.0,109000.0,0.00639291]
[1756583281556,1.25661777,109010.0,109000.0,0.00639291]
[1756583281989,1.40917777,109010.0,109000.0,0.00639291]
[1756583282812,1.40915551,109010.0,109000.0,0.00639291]
[1756583283584,1.25659551,109010.0,109000.0,0.00639291]
[1756583283801,1.40915551,109010.0,109000.0,0.00639291]
[1756583285377,1.41558899,109010.0,109000.0,0.00639291]
[1756583286151,1.39843181,109010.0,109000.0,0.00639291]
[1756583286362,1.41558794,109010.0,109000.0,0.00639291]
[1756583287015,1.26302794,109010.0,109000.0,0.00639291]
[1756583287224,0.38114293,109020.0,109000.0,0.28515272]
[1756583287453,0.7109705,109020.0,109010.0,0.00319]
[1756583287649,1.05515843,109020.0,109010.0,0.00521]
[1756583288287,1.05615843,109020.0,109010.0,0.00521]
[1756583288490,0.36778257,109020.0,109010.0,0.00521]
[1756583288695,0.7139705,109020.0,109010.0,0.00521]
[1756583288903,0.7109705,109020.0,109010.0,0.00521]
[1756583289326,0.86555445,109020.0,109010.0,0.00521]
[1756583289976,0.1834694,109010.0,109000.0,0.12393892]
[1756583290232,0.52768128,109010.0,109000.0,0.12595892]
[1756583290792,0.1834694,109010.0,109000.0,0.12595892]
[1756583291001,0.52768128,109010.0,109000.0,0.12595892]
[1756583294028,0.1834694,109010.0,109000.0,0.12595892]
[1756583294797,0.52967128,109010.0,109000.0,0.00018291]
[1756583295010,0.69943942,109010.0,109000.0,0.00018291]
[1756583296748,0.68227128,109010.0,109000.0,0.00018291]
[1756583296948,0.69944426,109010.0,109000.0,0.00018291]
[1756583297361,0.699446,109010.0,109000.0,0.00018291]
[1756583299311,0.78774232,109010.0,109000.0,0.00018291]
[1756583299459,0.699446,109010.0,109000.0,0.00018291]
[1756583307434,0.69946538,109010.0,109000.0,0.00018291]
[1756583307820,0.6994661,109010.0,109000.0,0.00018291]
[1756583308034,0.71770245,109010.0,109000.0,0.00018291]
[1756583308259,0.72415159,109010.0,109000.0,0.00018291]
[1756583309477,0.72423379,109010.0,109000.0,0.00018291]
[1756583314239,1.06852787,109010.0,109000.0,0.00018291]
[1756583314880,0.22733971,109010.0,109000.0,0.00533291]
[1756583315092,0.72415379,109010.0,109000.0,0.00533291]
[1756583317868,0.71770465,109010.0,109000.0,0.00533291]
[1756583318082,0.72417595,109010.0,109000.0,0.00533291]
[1756583318485,0.72417849,109010.0,109000.0,0.00533291]
[1756583319743,0.72421849,109010.0,109000.0,0.00533291]
[1756583320883,0.37992441,109010.0,109000.0,0.00533291]
[1756583321092,0.72421849,109010.0,109000.0,0.00533291]
[1756583322702,0.37992441,109010.0,109000.0,0.00533291]
[1756583323013,0.72421849,109010.0,109000.0,0.00533291]
[1756583323191,0.57165849,109010.0,109000.0,0.00533291]
[1756583323399,0.72421849,109010.0,109000.0,0.00533291]
[1756583323820,0.56966849,109010.0,109000.0,0.00533291]
[1756583324023,0.72222849,109010.0,109000.0,0.00533291]
[1756583325720,0.72230849,109010.0,109000.0,0.00533291]
[1756583326782,0.37801441,109010.0,109000.0,0.00533291]
[1756583326990,0.56966849,109010.0,109000.0,0.00533291]
[1756583327825,0.57163849,109010.0,109000.0,0.00533291]
[1756583328479,0.5632141,109010.0,109000.0,0.00533291]
[1756583328675,0.56969149,109010.0,109000.0,0.00533291]
[1756583328881,0.72237149,109010.0,109000.0,0.00533291]
[1756583329116,0.70514119,109010.0,109000.0,0.00533291]
[1756583329320,0.72237149,109010.0,109000.0,0.00533291]
[1756583330960,0.56969149,109010.0,109000.0,0.00533291]
[1756583336643,0.57167149,109010.0,109000.0,0.00533291]
[1756583338309,0.72427149,109010.0,109000.0,0.00533291]
[1756583339299,0.70057983,109010.0,109000.0,0.00533291]
[1756583339508,0.72426528,109010.0,109000.0,0.00533291]
[1756583339941,0.72426504,109010.0,109000.0,0.00533291]
[1756583340316,0.02368521,109010.0,109000.0,0.28179915]
[1756583340521,0.21092,109020.0,109000.0,0.28179915]
[1756583340522,0.71107823,109020.0,109000.0,0.28179915]
[1756583340779,0.72830201,109020.0,109010.0,0.00318]
[1756583340979,0.72830201,109020.0,109010.0,0.00523]
[1756583341602,0.74697795,109020.0,109010.0,0.00523]
[1756583341830,0.74997795,109020.0,109010.0,0.00523]
[1756583342066,0.40568387,109020.0,109010.0,0.00523]
[1756583342254,0.74897795,109020.0,109010.0,0.00523]
[1756583342550,0.74997795,109020.0,109010.0,0.00523]
[1756583343091,0.74797795,109020.0,109010.0,0.00523]
[1756583343315,0.40568387,109020.0,109010.0,0.1886994]
[1756583343527,0.74997795,109020.0,109010.0,0.1886994]
[1756583344736,1.09427203,109020.0,109010.0,0.1886994]
[1756583346532,1.07704825,109020.0,109010.0,0.1886994]
[1756583346748,1.07704825,109020.0,109010.0,0.00523]
[1756583346965,1.07704825,109020.0,109010.0,0.15779]
[1756583347813,0.38846009,109020.0,109010.0,0.3412594]
[1756583348026,1.07704825,109020.0,109010.0,0.3412594]
[1756583358117,1.07704825,109020.0,109010.0,0.1886994]
[1756583358320,0.89216872,109020.0,109010.0,0.3412594]
[1756583360136,0.20160056,109020.0,109010.0,0.3412594]
[1756583360345,0.89018872,109020.0,109010.0,0.3412594]
[1756583360660,0.69158816,109020.0,109010.0,0.3412594]
[1756583360859,0.34729408,109020.0,109010.0,0.43423941]
[1756583361516,0.34729408,109020.0,109010.0,0.46182441]
[1756583373650,0.34729408,109020.0,109010.0,0.46170441]
[1756583374524,0.69356816,109020.0,109010.0,0.46170441]
[1756583374983,0.87702073,109020.0,109010.0,0.27300501]
[1756583375156,1.22411481,109020.0,109010.0,0.027585]
[1756583375365,0.1834694,109010.0,109000.0,0.25422906]
[1756583375545,0.87404756,109010.0,109000.0,0.52727507]
[1756583375972,0.52975348,109010.0,109000.0,0.52727507]
[1756583376747,0.52975348,109010.0,109000.0,0.37479507]
[1756583376973,0.52975348,109010.0,109000.0,0.52727507]
[1756583377185,0.87404756,109010.0,109000.0,0.52727507]
[1756583378447,0.52975348,109010.0,109000.0,0.52727507]
[1756583379210,0.52975348,109010.0,109000.0,0.53029507]
[1756583379439,0.52975348,109010.0,109000.0,0.52727507]
[1756583379608,0.1854594,109010.0,109000.0,0.52727507]
[1756583379816,0.52975348,109010.0,109000.0,0.52727507]
[1756583380015,0.87404756,109010.0,109000.0,0.52727507]
[1756583381216,0.52975348,109010.0,109000.0,0.52727507]
[1756583383019,0.52975348,109010.0,109000.0,0.53029507]
[1756583383456,0.52975348,109010.0,109000.0,0.53233507]
[1756583387540,0.52975348,109010.0,109000.0,0.52727507]
[1756583387742,0.52975348,109010.0,109000.0,0.53029507]
[1756583387946,0.52975348,109010.0,109000.0,0.53233507]
[1756583393921,0.52975348,109010.0,109000.0,0.46177507]
[1756583399854,0.1854594,109010.0,109000.0,0.46177507]
[1756583400077,0.52975348,109010.0,109000.0,0.46177507]
[1756583405522,0.1854594,109010.0,109000.0,0.46177507]
[1756583405708,0.52975348,109010.0,109000.0,0.46177507]
[1756583405909,0.1854594,109010.0,109000.0,0.46177507]
[1756583406114,0.52975348,109010.0,109000.0,0.46177507]
[1756583417766,0.1854594,109010.0,109000.0,0.46177507]
[1756583417949,0.52975348,109010.0,109000.0,0.46177507]
[1756583418393,0.87404756,109010.0,109000.0,0.27318892]
[1756583418617,0.89406511,109010.0,109000.0,0.00018291]
[1756583418826,0.98882194,109010.0,109000.0,0.15262291]
[1756583419454,0.89406511,109010.0,109000.0,0.15262291]
[1756583420552,0.89127511,109010.0,109000.0,0.15262291]
[1756583422097,0.89126489,109010.0,109000.0,0.15262291]
[1756583422727,0.20267673,109010.0,109000.0,0.15262291]
[1756583423121,0.89126489,109010.0,109000.0,0.15262291]
[1756583427466,0.54697081,109010.0,109000.0,0.15262291]
[1756583427690,0.89126489,109010.0,109000.0,0.15262291]
[1756583431561,0.20267673,109010.0,109000.0,0.15262291]
[1756583431776,0.89126489,109010.0,109000.0,0.15262291]
[1756583432755,0.20068043,109010.0,109000.0,0.34128914]
[1756583432962,0.54497451,109010.0,109000.0,0.34128914]
[1756583433362,0.52776348,109010.0,109000.0,0.34128914]
[1756583433582,0.54497433,109010.0,109000.0,0.34128914]
[1756583438657,0.01721085,109010.0,109000.0,0.34128914]
[1756583438863,0.36150493,109010.0,109000.0,0.34128914]
[1756583440093,0.54497433,109010.0,109000.0,0.34128914]
[1756583440701,0.54497433,109010.0,109000.0,0.34428914]
[1756583441513,0.54695433,109010.0,109000.0,0.16080291]
[1756583442652,0.54695433,109010.0,109000.0,0.16280291]
[1756583443357,0.52974348,109010.0,109000.0,0.34628914]
[1756583443501,0.5449804,109010.0,109000.0,0.34628914]
[1756583444352,0.361511,109010.0,109000.0,0.34628914]
[1756583445246,0.01721692,109010.0,109000.0,0.34628914]
[1756583445453,0.361511,109010.0,109000.0,0.34628914]
[1756583449413,0.01721692,109010.0,109000.0,0.34628914]
[1756583449621,0.361511,109010.0,109000.0,0.34628914]
[1756583454119,0.36151645,109010.0,109000.0,0.34628914]
[1756583458096,0.36151645,109010.0,109000.0,0.37387714]
[1756583458902,0.54498585,109010.0,109000.0,0.37387714]
[1756583459105,0.36151645,109010.0,109000.0,0.46685715]
[1756583459976,0.01722237,109010.0,109000.0,0.46685715]
[1756583460177,0.36151645,109010.0,109000.0,0.46685715]
[1756583460437,0.01722237,109010.0,109000.0,0.46685715]
[1756583460636,0.36151645,109010.0,109000.0,0.46685715]
[1756583461009,0.01722237,109010.0,109000.0,0.46685715]
[1756583461314,0.36151645,109010.0,109000.0,0.46685715]
[1756583462956,0.36151645,109010.0,109000.0,0.31441715]
[1756583463161,0.36151645,109010.0,109000.0,0.46685715]
[1756583463505,0.34429408,109010.0,109000.0,0.46685715]
[1756583463716,0.3615179,109010.0,109000.0,0.46685715]
[1756583464128,0.3615179,109010.0,109000.0,0.46385715]
[1756583464353,0.3615179,109010.0,109000.0,0.46485715]
[1756583464574,0.3615179,109010.0,109000.0,0.46285715]
[1756583464880,0.3615179,109010.0,109000.0,0.46385715]
[1756583465323,0.3615179,109010.0,109000.0,0.46285715]
[1756583465699,0.3615179,109010.0,109000.0,0.46385715]
[1756583466507,0.01722382,109010.0,109000.0,0.46385715]
[1756583466690,0.3615179,109010.0,109000.0,0.46385715]
[1756583467091,0.3615179,109010.0,109000.0,0.53441715]
[1756583468950,0.3615179,109010.0,109000.0,0.38197715]
[1756583469148,0.3615179,109010.0,109000.0,0.53441715]
[1756583470671,0.36151328,109010.0,109000.0,0.53441715]
[1756583471806,0.36151328,109010.0,109000.0,0.46385715]
[1756583472014,0.54696268,109010.0,109000.0,0.30623715]
[1756583472232,0.98236308,109010.0,109000.0,0.18221091]
[1756583472647,0.98236308,109010.0,109000.0,0.15462291]
[1756583473187,0.89406676,109010.0,109000.0,0.15462291]
[1756583473391,0.71165377,109010.0,109000.0,0.00218291]
[1756583473730,0.71165377,109010.0,109000.0,0.15470291]
[1756583474305,0.71165445,109010.0,109000.0,0.15470291]
[1756583475313,0.71165445,109010.0,109000.0,0.15370291]
[1756583476157,0.71165445,109010.0,109000.0,0.15270291]
[1756583481415,0.70884445,109010.0,109000.0,0.15270291]
[1756583483518,0.70884445,109010.0,109000.0,0.00018291]
[1756583483654,0.70884445,109010.0,109000.0,0.15266291]
[1756583484687,0.69162457,109010.0,109000.0,0.15266291]
[1756583484884,0.70883796,109010.0,109000.0,0.15266291]
[1756583485494,0.54695687,109010.0,109000.0,0.15266291]
[1756583485892,0.54695687,109010.0,109000.0,0.15799291]
[1756583486296,0.20068279,109010.0,109000.0,0.34377271]
[1756583486543,0.54497687,109010.0,109000.0,0.34147914]
[1756583488588,0.35231589,109010.0,109000.0,0.34147914]
[1756583489709,0.53578529,109010.0,109000.0,0.34147914]
[1756583492030,0.53578529,109010.0,109000.0,0.36906814]
[1756583495380,0.52776348,109010.0,109000.0,0.36906814]
[1756583500433,0.52776348,109010.0,109000.0,0.34147914]
[1756583500801,0.5449846,109010.0,109000.0,0.34147914]
[1756583501893,0.5449846,109010.0,109000.0,0.00018291]
[1756583501894,0.5469646,109010.0,109000.0,0.00018291]
[1756583502122,0.5497646,109010.0,109000.0,0.15262291]
[1756583502342,0.55622442,109010.0,109000.0,0.15262291]
[1756583502540,0.9005185,109010.0,109000.0,0.15262291]
[1756583502758,0.55622442,109010.0,109000.0,0.15262291]
[1756583506157,0.5562295,109010.0,109000.0,0.15262291]
[1756583506800,0.5534295,109010.0,109000.0,0.15262291]
[1756583506995,0.89772358,109010.0,109000.0,0.15262291]
[1756583507256,0.5534295,109010.0,109000.0,0.15262291]
[1756583508087,0.5534295,109010.0,109000.0,0.18021191]
[1756583514728,0.5534295,109010.0,109000.0,0.18329191]
[1756583514925,0.5534295,109010.0,109000.0,0.18539191]
[1756583517060,0.5514495,109010.0,109000.0,0.36887814]
[1756583517272,0.54498968,109010.0,109000.0,0.34128914]
[1756583517941,0.54498932,109010.0,109000.0,0.34128914]
[1756583518396,0.88498932,109010.0,109000.0,0.34128914]
[1756583518779,0.88498932,109010.0,109000.0,0.36887814]
[1756583519180,0.88498941,109010.0,109000.0,0.36887814]
[1756583519758,0.88498941,109010.0,109000.0,0.18539191]
[1756583522896,0.88498941,109010.0,109000.0,0.36887814]
[1756583526282,0.88499027,109010.0,109000.0,0.36887814]
[1756583527077,0.88499031,109010.0,109000.0,0.36887814]
[1756583529517,0.54069623,109010.0,109000.0,0.36887814]
[1756583529718,0.88499031,109010.0,109000.0,0.36887814]
[1756583533874,0.88695031,109010.0,109000.0,0.36887814]
[1756583535586,0.88694985,109010.0,109000.0,0.36887814]
[1756583536939,0.88694975,109010.0,109000.0,0.36887814]
[1756583537373,0.8869498,109010.0,109000.0,0.36887814]
[1756583539756,0.8869498,109010.0,109000.0,0.18021191]
[1756583539992,1.23405388,109010.0,109000.0,0.00018291]
[1756583540256,1.240514,109010.0,109000.0,0.15262291]
[1756583540520,1.268103,109010.0,109000.0,0.15262291]
[1756583542256,1.268103,109010.0,109000.0,0.00018291]
[1756583542480,1.268103,109010.0,109000.0,0.15262291]
[1756583545393,1.268103,109010.0,109000.0,0.00018291]
[1756583545612,1.268103,109010.0,109000.0,0.15262291]
[1756583547345,1.2681018,109010.0,109000.0,0.15262291]
[1756583547553,1.2681011,109010.0,109000.0,0.15262291]
[1756583548235,1.2652911,109010.0,109000.0,0.15262291]
[1756583549199,0.92099676,109010.0,109000.0,0.15791291]
[1756583550077,0.9145376,109010.0,109000.0,0.15791291]
[1756583553396,0.9145376,109010.0,109000.0,0.15262291]
[1756583554662,0.9145376,109010.0,109000.0,0.15584291]
[1756583554830,0.8869486,109010.0,109000.0,0.15584291]
[1756583555257,0.8869486,109010.0,109000.0,0.15791291]
[1756583556508,1.23124268,109010.0,109000.0,0.15791291]
[1756583558035,1.23124189,109010.0,109000.0,0.15791291]
[1756583560610,0.54265373,109010.0,109000.0,0.15791291]
[1756583560859,1.23124189,109010.0,109000.0,0.15791291]
[1756583561083,1.23124189,109010.0,109000.0,0.34139914]
[1756583561226,0.88694781,109010.0,109000.0,0.34139914]
[1756583565221,0.86972348,109010.0,109000.0,0.34139914]
[1756583565420,0.88694924,109010.0,109000.0,0.34139914]
[1756583568807,0.88695049,109010.0,109000.0,0.34139914]
[1756583569385,0.88695099,109010.0,109000.0,0.34139914]
[1756583570215,0.54695099,109010.0,109000.0,0.34139914]
[1756583575628,0.01722751,109010.0,109000.0,0.34139914]
[1756583575892,0.54499099,109010.0,109000.0,0.34139914]
[1756583578172,0.57257999,109010.0,109000.0,0.34139914]
[1756583578593,0.57257999,109010.0,109000.0,0.36898914]
[1756583579685,0.54499261,109010.0,109000.0,0.36898914]
[1756583580699,0.01722913,109010.0,109000.0,0.36898914]
[1756583580900,0.36152321,109010.0,109000.0,0.36898914]
[1756583583913,0.36152321,109010.0,109000.0,0.56898914]
[1756583584105,0.36152321,109010.0,109000.0,0.36898914]
[1756583585046,0.01722913,109010.0,109000.0,0.46196915]
[1756583585524,0.23508444,109030.0,109020.0,0.18345257]
[1756583585717,0.60306136,109030.0,109020.0,0.33803257]
[1756583585851,0.60504136,109030.0,109020.0,0.34106257]
[1756583586057,0.60504136,109030.0,109020.0,0.36864757]
[1756583586279,0.36151797,109030.0,109020.0,0.46162758]
[1756583586774,0.36651797,109030.0,109020.0,0.46162758]
[1756583588658,0.36351797,109030.0,109020.0,0.46162758]
[1756583588865,0.36351797,109030.0,109020.0,0.46262758]
[1756583589007,0.34629408,109030.0,109020.0,0.46262758]
[1756583589228,0.34429408,109030.0,109020.0,0.46262758]
[1756583589647,0.34529408,109030.0,109020.0,0.46262758]
[1756583590300,0.34429408,109030.0,109020.0,0.46262758]
[1756583590501,0.14661836,109030.0,109020.0,0.46262758]
[1756583590714,0.14661836,109030.0,109020.0,0.66362758]
[1756583591015,0.14661836,109030.0,109020.0,0.46362758]
[1756583593971,0.14859836,109030.0,109020.0,0.31118758]
[1756583594201,0.33203411,109030.0,109020.0,0.45849758]
[1756583595084,0.14859836,109030.0,109020.0,0.46152758]
[1756583595502,0.14859836,109030.0,109020.0,0.46366758]
[1756583596353,0.14661836,109030.0,109020.0,0.46366758]
[1756583598774,0.33005411,109030.0,109020.0,0.31118758]
[1756583598974,0.33005411,109030.0,109020.0,0.46362758]
[1756583599382,0.14661836,109030.0,109020.0,0.46362758]
[1756583600515,0.33005411,109030.0,109020.0,0.31118758]
[1756583600709,0.33005411,109030.0,109020.0,0.46362758]
[1756583600953,0.14661836,109030.0,109020.0,0.46362758]
[1756583602785,0.19659792,109040.0,109020.0,0.46362758]
[1756583602990,0.34429408,109030.0,109020.0,0.46362758]
[1756583603217,0.34429408,109030.0,109020.0,0.43604258]
[1756583603373,0.34429408,109030.0,109020.0,0.46362458]
[1756583603741,0.34429408,109030.0,109020.0,0.46262458]
[1756583604193,0.34429408,109030.0,109020.0,0.46162458]
[1756583605014,0.34429408,109030.0,109020.0,0.46262458]
[1756583605585,0.34429408,109030.0,109020.0,0.46362458]
[1756583606744,0.52970983,109030.0,109020.0,0.46358458]
[1756583614148,0.54691391,109030.0,109020.0,0.46358458]
[1756583619265,0.20261983,109030.0,109020.0,0.46358458]
[1756583619466,0.54493391,109030.0,109020.0,0.46358458]
[1756583621020,0.54495728,109030.0,109020.0,0.46358458]
[1756583621221,0.54495747,109030.0,109020.0,0.46358458]
[1756583623380,0.54495747,109030.0,109020.0,0.31118458]
[1756583623582,0.54693747,109030.0,109020.0,0.46358458]
[1756583631858,0.52970983,109030.0,109020.0,0.46358458]
[1756583632050,0.54693769,109030.0,109020.0,0.46358458]
[1756583634662,0.54693769,109030.0,109020.0,0.12773201]
[1756583634873,0.89403177,109030.0,109020.0,0.029582]
[1756583635101,0.92161577,109030.0,109020.0,0.1544]
[1756583635302,0.57732169,109030.0,109020.0,0.1544]
[1756583635771,0.92161577,109030.0,109020.0,0.1534]
[1756583636661,0.71725777,109030.0,109020.0,0.1544]
[1756583636840,0.90202352,109030.0,109020.0,0.1544]
[1756583638204,0.87443952,109030.0,109020.0,0.1544]
[1756583640391,0.88172442,109030.0,109020.0,0.002]
[1756583640596,1.03412442,109030.0,109020.0,0.002]
[1756583641229,0.90931142,109030.0,109020.0,0.002]
[1756583641446,0.18345257,109020.0,109010.0,0.4095594]
[1756583641643,0.87204073,109020.0,109010.0,0.4095594]
[1756583641820,0.87204073,109020.0,109010.0,0.4116994]
[1756583642032,0.89962773,109020.0,109010.0,0.4116994]
[1756583642483,0.89962773,109020.0,109010.0,0.22823]
[1756583643276,0.89962773,109020.0,109010.0,0.4116994]
[1756583643664,0.89962773,109020.0,109010.0,0.4126994]
[1756583644018,0.89962773,109020.0,109010.0,0.22923]
[1756583644934,0.89962773,109020.0,109010.0,0.23023]
[1756583645689,0.89962773,109020.0,109010.0,0.4136994]
[1756583648677,0.91681822,109020.0,109010.0,0.4136994]
[1756583651987,0.89962773,109020.0,109010.0,0.4136994]
[1756583652192,0.91681668,109020.0,109010.0,0.4136994]
[1756583654699,0.88922968,109020.0,109010.0,0.4136994]
[1756583659043,0.88923436,109020.0,109010.0,0.4136994]
[1756583662641,0.87204073,109020.0,109010.0,0.4136994]
[1756583662784,0.88924409,109020.0,109010.0,0.4136994]
[1756583668755,0.89057409,109020.0,109010.0,0.07783]
[1756583668971,0.89057409,109020.0,109010.0,0.23023]
[1756583669168,0.89703484,109020.0,109010.0,0.23023]
[1756583669526,0.89703484,109020.0,109010.0,0.22923]
[1756583670299,0.89703484,109020.0,109010.0,0.22823]
[1756583670846,0.89703484,109020.0,109010.0,0.4116994]
[1756583672844,0.89703484,109020.0,109010.0,0.3411394]
[1756583673277,0.89706023,109020.0,109010.0,0.3411394]
[1756583673712,0.89059946,109020.0,109010.0,0.3411394]
[1756583673913,0.89706025,109020.0,109010.0,0.3411394]
[1756583674159,0.89706025,109020.0,109010.0,0.00527]
[1756583674365,0.89706025,109020.0,109010.0,0.1524]
[1756583677829,0.89705976,109020.0,109010.0,0.1524]
[1756583680607,0.1834694,109010.0,109000.0,0.28485583]
[1756583680837,0.54499172,109010.0,109000.0,0.53228584]
[1756583682103,0.54499172,109010.0,109000.0,0.34880092]
[1756583682317,0.54499172,109010.0,109000.0,0.19636092]
[1756583682530,0.54499172,109010.0,109000.0,0.53228715]
[1756583682954,0.54499172,109010.0,109000.0,0.53328715]
[1756583683156,0.54499172,109010.0,109000.0,0.53428715]
[1756583684007,0.54499088,109010.0,109000.0,0.53428715]
[1756583690839,0.52776348,109010.0,109000.0,0.53428715]
[1756583693386,0.1834694,109010.0,109000.0,0.53428715]
[1756583693596,0.52776348,109010.0,109000.0,0.53428715]
[1756583693794,0.52776348,109010.0,109000.0,0.35080092]
[1756583694230,0.52776348,109010.0,109000.0,0.53428715]
[1756583694533,0.54499215,109010.0,109000.0,0.53428715]
[1756583694735,0.5449921,109010.0,109000.0,0.53428715]
[1756583695474,0.54499211,109010.0,109000.0,0.53428715]
[1756583698304,0.54499211,109010.0,109000.0,0.50669915]
[1756583702261,0.89061619,109010.0,109000.0,0.07779291]
[1756583702405,0.89144619,109010.0,109000.0,0.22514291]
[1756583702803,0.89790614,109010.0,109000.0,0.22514291]
[1756583703027,0.8979062,109010.0,109000.0,0.22514291]
[1756583703361,0.89061619,109010.0,109000.0,0.22314291]
[1756583704179,0.89706939,109010.0,109000.0,0.22314291]
[1756583704323,0.89061071,109010.0,109000.0,0.22314291]
[1756583704740,0.8970683,109010.0,109000.0,0.22314291]
[1756583705354,0.89061071,109010.0,109000.0,0.22314291]
[1756583714456,0.87338756,109010.0,109000.0,0.22314291]
[1756583714663,0.89059669,109010.0,109000.0,0.22314291]
[1756583717114,0.89059669,109010.0,109000.0,0.22621291]
[1756583717979,0.89059669,109010.0,109000.0,0.22314291]
[1756583718188,0.89059669,109010.0,109000.0,0.22318291]
[1756583718396,0.89705015,109010.0,109000.0,0.22318291]
[1756583718607,0.92464115,109010.0,109000.0,0.22318291]
[1756583719981,0.92464115,109010.0,109000.0,0.22634291]
[1756583720201,0.23472299,109010.0,109000.0,0.22835291]
[1756583720398,0.57901707,109010.0,109000.0,0.22835291]
[1756583722322,0.57901652,109010.0,109000.0,0.22835291]
[1756583722917,0.35588516,109010.0,109000.0,0.22835291]
[1756583723120,0.53935456,109010.0,109000.0,0.22835291]
[1756583725286,0.52214598,109010.0,109000.0,0.22835291]
[1756583725413,0.53935644,109010.0,109000.0,0.22835291]
[1756583726038,0.53935766,109010.0,109000.0,0.22835291]
[1756583726452,0.54068766,109010.0,109000.0,0.22835291]
[1756583726663,0.54068766,109010.0,109000.0,0.07591291]
[1756583726862,0.54068766,109010.0,109000.0,0.22835291]
[1756583727965,0.88498174,109010.0,109000.0,0.22835291]
[1756583734697,0.88498174,109010.0,109000.0,0.07591291]
[1756583734899,0.89144099,109010.0,109000.0,0.22318291]
[1756583735863,0.89145398,109010.0,109000.0,0.22318291]
[1756583736665,0.89145399,109010.0,109000.0,0.15262291]
[1756583742775,0.89145399,109010.0,109000.0,0.15578291]
[1756583746299,0.55277741,109010.0,109000.0,0.15578291]
[1756583746685,0.55278308,109010.0,109000.0,0.15578291]
[1756583747568,0.55278308,109010.0,109000.0,0.15779291]
[1756583748848,0.52909348,109010.0,109000.0,0.15779291]
[1756583749272,0.55278484,109010.0,109000.0,0.15779291]
[1756583750257,0.55278484,109010.0,109000.0,0.00535291]
[1756583750435,0.55278484,109010.0,109000.0,0.15779291]
[1756583755975,0.55145484,109010.0,109000.0,0.15779291]
[1756583758659,0.52776348,109010.0,109000.0,0.15779291]
[1756583758877,0.55145766,109010.0,109000.0,0.15779291]
[1756583764342,0.55278766,109010.0,109000.0,0.15779291]
[1756583764727,0.55145753,109010.0,109000.0,0.15779291]
[1756583768043,0.5342254,109010.0,109000.0,0.15779291]
[1756583768268,0.55145678,109010.0,109000.0,0.15779291]
[1756583768926,0.55145667,109010.0,109000.0,0.00535291]
[1756583769049,0.55145667,109010.0,109000.0,0.15779291]
[1756583771778,0.55145667,109010.0,109000.0,0.00535291]
[1756583771979,0.55278667,109010.0,109000.0,0.15779291]
[1756583773197,0.55278667,109010.0,109000.0,0.00535291]
[1756583773403,0.55278667,109010.0,109000.0,0.15779291]
[1756583778737,0.55278635,109010.0,109000.0,0.15779291]
[1756583785736,0.55278635,109010.0,109000.0,0.00535291]
[1756583785970,0.55278635,109010.0,109000.0,0.15779291]
[1756583786393,0.20849227,109010.0,109000.0,0.15779291]
[1756583786569,0.55278635,109010.0,109000.0,0.15779291]
[1756583787425,0.55145635,109010.0,109000.0,0.15779291]
[1756583788509,0.20716227,109010.0,109000.0,0.15779291]
[1756583788710,0.55145635,109010.0,109000.0,0.15779291]
[1756583789218,0.36062469,109010.0,109000.0,0.15779291]
[1756583789421,0.52776348,109010.0,109000.0,0.15779291]
[1756583793809,0.1834694,109010.0,109000.0,0.15779291]
[1756583793977,0.52776348,109010.0,109000.0,0.15779291]
[1756583798469,0.1834694,109010.0,109000.0,0.15779291]
[1756583798673,0.52776348,109010.0,109000.0,0.34127914]
[1756583799031,0.1834694,109010.0,109000.0,0.34127914]
[1756583799229,0.52776348,109010.0,109000.0,0.34127914]
[1756583799445,0.52776348,109010.0,109000.0,0.15779291]
[1756583801167,0.55145404,109010.0,109000.0,0.15779291]
[1756583803412,0.20715996,109010.0,109000.0,0.15779291]
[1756583803619,0.55145404,109010.0,109000.0,0.15779291]
[1756583803825,0.55145402,109010.0,109000.0,0.15779291]
[1756583804976,0.29596841,109010.0,109000.0,0.15779291]
[1756583805177,0.31319792,109010.0,109000.0,0.15779291]
[1756583805384,0.20069891,109010.0,109000.0,0.34127914]
[1756583805523,0.54499299,109010.0,109000.0,0.34127914]
[1756583805744,0.54499299,109010.0,109000.0,0.36886814]
[1756583810543,0.54632299,109010.0,109000.0,0.18538191]
[1756583810923,0.54631739,109010.0,109000.0,0.18538191]
[1756583811509,0.54631714,109010.0,109000.0,0.18538191]
[1756583811920,0.20202306,109010.0,109000.0,0.02777191]
[1756583812126,0.54631717,109010.0,109000.0,0.18021191]
[1756583814575,1.04388125,109010.0,109000.0,0.02777191]
[1756583814775,1.07147425,109010.0,109000.0,0.02777191]
[1756583814955,1.09131858,109010.0,109000.0,0.02777191]
[1756583815156,1.09131858,109010.0,109000.0,0.00018291]
[1756583817171,1.09777651,109010.0,109000.0,0.00018291]
[1756583818380,1.07793218,109010.0,109000.0,0.00018291]
[1756583820501,1.07710218,109010.0,109000.0,0.00018291]
[1756583820705,0.92466218,109010.0,109000.0,0.00018291]
[1756583820933,0.7328081,109010.0,109000.0,0.00018291]
[1756583821146,0.73279857,109010.0,109000.0,0.00018291]
[1756583823442,0.58035857,109010.0,109000.0,0.00018291]
[1756583823648,0.73279857,109010.0,109000.0,0.00018291]
[1756583828216,0.58035857,109010.0,109000.0,0.00018291]
[1756583828424,0.58035857,109010.0,109000.0,0.00534291]
[1756583828425,0.57902857,109010.0,109000.0,0.00534291]
[1756583829266,0.58035857,109010.0,109000.0,0.00534291]
[1756583830611,0.58035857,109010.0,109000.0,0.00321291]
[1756583830761,0.58035857,109010.0,109000.0,0.00018291]
[1756583830965,0.57390255,109010.0,109000.0,0.00018291]
[1756583831159,0.58035189,109010.0,109000.0,0.00018291]
[1756583831802,0.58035181,109010.0,109000.0,0.00018291]